[Event "Titled Tuesday Blitz December 27 Late 2022"]
[White "Kaganskiy, Gleb"]
[Black "Rodriguez Fontecha, Marcos"]
[WhiteFideId "4132025"]
[BlackFideId "2256576"]
[WhiteElo "2205"]
[BlackElo "2309"]
[Result "0-1"]
[Round "09"]
[TimeControl "180+2"]
[Date "2022.12.27"]
[WhiteClock "0:00:45"]
[BlackClock "0:01:12"]

1. e4 {[%clk 0:02:56]}  e6 {[%clk 0:02:59]} 2. d4 {[%clk 0:02:55]}  d5 {[%clk 0:03:00]} 3. Nd2 {[%clk 0:02:54]}  c5 {[%clk 0:03:00]} 4. Ngf3 {[%clk 0:02:53]}  cxd4 {[%clk 0:03:00]} 5. Nxd4 {[%clk 0:02:53]}  Nf6 {[%clk 0:02:59]} 6. exd5 {[%clk 0:02:52]}  Qxd5 {[%clk 0:02:58]} 7. N2f3 {[%clk 0:02:50]}  Nc6 {[%clk 0:02:58]} 8. Nxc6 {[%clk 0:02:46]}  Qxd1+ {[%clk 0:02:53]} 9. Kxd1 {[%clk 0:02:46]}  bxc6 {[%clk 0:02:53]} 10. h3 {[%clk 0:02:41]}  Bc5 {[%clk 0:02:51]} 11. Be3 {[%clk 0:02:39]}  Bxe3 {[%clk 0:02:51]} 12. fxe3 {[%clk 0:02:40]}  Ne4 {[%clk 0:02:50]} 13. Ke1 {[%clk 0:02:36]}  Rb8 {[%clk 0:02:51]} 14. b3 {[%clk 0:02:33]}  c5 {[%clk 0:02:42]} 15. Bd3 {[%clk 0:02:31]}  Bb7 {[%clk 0:02:42]} 16. Rd1 {[%clk 0:02:25]}  Nc3 {[%clk 0:02:38]} 17. Ra1 {[%clk 0:02:19]}  Ke7 {[%clk 0:02:28]} 18. Kd2 {[%clk 0:02:19]}  Nd5 {[%clk 0:02:26]} 19. Be4 {[%clk 0:02:15]}  Rhd8 {[%clk 0:02:21]} 20. Bxd5 {[%clk 0:02:14]}  Bxd5 {[%clk 0:02:20]} 21. Ke2 {[%clk 0:02:13]}  c4 {[%clk 0:02:19]} 22. Rhd1 {[%clk 0:02:12]}  Rdc8 {[%clk 0:02:17]} 23. Rac1 {[%clk 0:02:03]}  Rb6 {[%clk 0:02:12]} 24. Ne5 {[%clk 0:01:58]}  cxb3 {[%clk 0:01:53]} 25. cxb3 {[%clk 0:01:58]}  Rxc1 {[%clk 0:01:54]} 26. Rxc1 {[%clk 0:01:59]}  Bxg2 {[%clk 0:01:53]} 27. Rg1 {[%clk 0:01:42]}  Be4 {[%clk 0:01:49]} 28. Rxg7 {[%clk 0:01:36]}  Kf6 {[%clk 0:01:44]} 29. Rxf7+ {[%clk 0:01:26]}  Kxe5 {[%clk 0:01:44]} 30. Rxa7 {[%clk 0:01:26]}  Rc6 {[%clk 0:01:40]} 31. Ra5+ {[%clk 0:01:23]}  Kf6 {[%clk 0:01:39]} 32. Kf2 {[%clk 0:01:22]}  Rc2+ {[%clk 0:01:38]} 33. Kg3 {[%clk 0:01:22]}  e5 {[%clk 0:01:37]} 34. b4 {[%clk 0:01:17]}  Kf5 {[%clk 0:01:21]} 35. b5 {[%clk 0:01:09]}  Rg2+ {[%clk 0:01:14]} 36. Kh4 {[%clk 0:01:08]}  Re2 {[%clk 0:01:15]} 37. a4 {[%clk 0:01:03]}  Rxe3 {[%clk 0:01:14]} 38. Ra7 {[%clk 0:01:02]}  Bg2 {[%clk 0:01:13]} 39. Rf7+ {[%clk 0:00:53]}  Kg6 {[%clk 0:01:12]} 40. Re7 {[%clk 0:00:45]}  Rxh3+ {[%clk 0:01:11]} 41. Kg4 {[%clk 0:00:45]}  h5# {[%clk 0:01:12]} 0-1


[Site "https://www.chess.com"]

[Event "Titled Tuesday Blitz December 27 Late 2022"]
[White "Kavutskiy, Konstantin"]
[Black "Ibadov, Dashgyn"]
[WhiteFideId "2026384"]
[BlackFideId "24107514"]
[WhiteElo "2414"]
[BlackElo "2391"]
[Result "1-0"]
[Round "09"]
[TimeControl "180+2"]
[Date "2022.12.27"]
[WhiteClock "0:00:57"]
[BlackClock "0:00:01"]

1. d4 {[%clk 0:02:49]}  Nf6 {[%clk 0:02:55]} 2. Bg5 {[%clk 0:02:48]}  Ne4 {[%clk 0:02:55]} 3. Bf4 {[%clk 0:02:48]}  d5 {[%clk 0:02:56]} 4. e3 {[%clk 0:02:47]}  c5 {[%clk 0:02:56]} 5. Nd2 {[%clk 0:02:45]}  Nxd2 {[%clk 0:02:53]} 6. Qxd2 {[%clk 0:02:43]}  Nc6 {[%clk 0:02:52]} 7. Nf3 {[%clk 0:02:40]}  cxd4 {[%clk 0:02:48]} 8. exd4 {[%clk 0:02:40]}  Bf5 {[%clk 0:02:46]} 9. Be2 {[%clk 0:02:35]}  e6 {[%clk 0:02:46]} 10. O-O {[%clk 0:02:35]}  Be7 {[%clk 0:02:46]} 11. c3 {[%clk 0:02:34]}  O-O {[%clk 0:02:46]} 12. Rfe1 {[%clk 0:02:34]}  h6 {[%clk 0:02:46]} 13. Bd3 {[%clk 0:02:28]}  Bxd3 {[%clk 0:02:42]} 14. Qxd3 {[%clk 0:02:29]}  a6 {[%clk 0:02:28]} 15. Re3 {[%clk 0:02:27]}  b5 {[%clk 0:02:21]} 16. a3 {[%clk 0:02:25]}  Ra7 {[%clk 0:02:18]} 17. Rae1 {[%clk 0:02:24]}  Rb7 {[%clk 0:02:15]} 18. Ne5 {[%clk 0:02:09]}  Nxe5 {[%clk 0:02:13]} 19. Bxe5 {[%clk 0:02:08]}  Bd6 {[%clk 0:01:59]} 20. Rg3 {[%clk 0:02:04]}  Bxe5 {[%clk 0:01:57]} 21. dxe5 {[%clk 0:01:57]}  Rc7 {[%clk 0:01:33]} 22. Qe3 {[%clk 0:01:56]}  Kh8 {[%clk 0:01:32]} 23. Rd1 {[%clk 0:01:55]}  Rc4 {[%clk 0:01:31]} 24. Rd4 {[%clk 0:01:55]}  Qc7 {[%clk 0:01:23]} 25. Rgg4 {[%clk 0:01:46]}  Rxd4 {[%clk 0:01:07]} 26. Rxd4 {[%clk 0:01:47]}  Rc8 {[%clk 0:01:03]} 27. Qg3 {[%clk 0:01:46]}  Qe7 {[%clk 0:00:53]} 28. Rg4 {[%clk 0:01:43]}  Qf8 {[%clk 0:00:52]} 29. h4 {[%clk 0:01:38]}  Rc4 {[%clk 0:00:52]} 30. Rxc4 {[%clk 0:01:29]}  bxc4 {[%clk 0:00:52]} 31. Qe3 {[%clk 0:01:29]}  Qb8 {[%clk 0:00:52]} 32. Qc5 {[%clk 0:01:07]}  Qxb2 {[%clk 0:00:47]} 33. Qf8+ {[%clk 0:01:07]}  Kh7 {[%clk 0:00:47]} 34. Qxf7 {[%clk 0:01:08]}  Qxc3 {[%clk 0:00:43]} 35. Qxe6 {[%clk 0:01:04]}  Qc1+ {[%clk 0:00:42]} 36. Kh2 {[%clk 0:01:04]}  Qf4+ {[%clk 0:00:43]} 37. Kh3 {[%clk 0:01:02]}  c3 {[%clk 0:00:03]} 38. Qxd5 {[%clk 0:01:02]}  Qf5+ {[%clk 0:00:03]} 39. g4 {[%clk 0:01:00]}  Qc2 {[%clk 0:00:01]} 40. Kg3 {[%clk 0:00:57]} 1-0


[Site "https://www.chess.com"]

[Event "Titled Tuesday Blitz December 27 Late 2022"]
[White "Kobo, Ori"]
[Black "Poltorak, Sebastian"]
[WhiteFideId "2812320"]
[BlackFideId "1199498"]
[WhiteElo "2559"]
[BlackElo "2354"]
[Result "1/2-1/2"]
[Round "09"]
[TimeControl "180+2"]
[Date "2022.12.27"]
[WhiteClock "0:00:03"]
[BlackClock "0:00:05"]

1. e4 {[%clk 0:02:56]}  Nc6 {[%clk 0:02:59]} 2. Nf3 {[%clk 0:02:54]}  f5 {[%clk 0:02:59]} 3. exf5 {[%clk 0:02:49]}  d5 {[%clk 0:02:59]} 4. d4 {[%clk 0:02:49]}  Bxf5 {[%clk 0:02:59]} 5. Bd3 {[%clk 0:02:49]}  Bg4 {[%clk 0:02:58]} 6. c3 {[%clk 0:02:23]}  Nf6 {[%clk 0:02:43]} 7. Bf4 {[%clk 0:02:18]}  e6 {[%clk 0:02:42]} 8. h3 {[%clk 0:02:15]}  Bh5 {[%clk 0:02:41]} 9. Nbd2 {[%clk 0:02:15]}  Bd6 {[%clk 0:02:41]} 10. Bxd6 {[%clk 0:02:12]}  Qxd6 {[%clk 0:02:42]} 11. Qb3 {[%clk 0:02:13]}  O-O-O {[%clk 0:02:40]} 12. O-O {[%clk 0:02:08]}  g5 {[%clk 0:02:15]} 13. Rae1 {[%clk 0:01:38]}  g4 {[%clk 0:02:08]} 14. Ne5 {[%clk 0:01:38]}  gxh3 {[%clk 0:02:04]} 15. g3 {[%clk 0:01:38]}  Nd7 {[%clk 0:01:55]} 16. f4 {[%clk 0:01:26]}  Ncxe5 {[%clk 0:01:51]} 17. fxe5 {[%clk 0:01:22]}  Qe7 {[%clk 0:01:51]} 18. Kh2 {[%clk 0:01:12]}  Rhg8 {[%clk 0:01:48]} 19. Rf4 {[%clk 0:00:36]}  Qg5 {[%clk 0:01:40]} 20. Nf1 {[%clk 0:00:31]}  Rdf8 {[%clk 0:01:33]} 21. Rxf8+ {[%clk 0:00:29]}  Rxf8 {[%clk 0:01:34]} 22. Qc2 {[%clk 0:00:29]}  Bf3 {[%clk 0:01:28]} 23. Qd2 {[%clk 0:00:20]}  Qg7 {[%clk 0:01:21]} 24. Ne3 {[%clk 0:00:19]}  Rg8 {[%clk 0:01:16]} 25. Qf2 {[%clk 0:00:18]}  Rf8 {[%clk 0:01:14]} 26. Qg1 {[%clk 0:00:11]}  h5 {[%clk 0:01:02]} 27. Rf1 {[%clk 0:00:12]}  Bg4 {[%clk 0:01:02]} 28. Rf4 {[%clk 0:00:09]}  c5 {[%clk 0:00:31]} 29. Qf2 {[%clk 0:00:08]}  cxd4 {[%clk 0:00:28]} 30. cxd4 {[%clk 0:00:09]}  Kb8 {[%clk 0:00:27]} 31. Bb5 {[%clk 0:00:09]}  Rxf4 {[%clk 0:00:25]} 32. Qxf4 {[%clk 0:00:08]}  Nb6 {[%clk 0:00:25]} 33. a4 {[%clk 0:00:03]}  a6 {[%clk 0:00:25]} 34. Bd3 {[%clk 0:00:03]}  Nxa4 {[%clk 0:00:24]} 35. Qf6 {[%clk 0:00:03]}  Qc7 {[%clk 0:00:22]} 36. Qf8+ {[%clk 0:00:03]}  Ka7 {[%clk 0:00:22]} 37. Qb4 {[%clk 0:00:03]}  Nb6 {[%clk 0:00:21]} 38. Qd2 {[%clk 0:00:04]}  Qf7 {[%clk 0:00:20]} 39. b3 {[%clk 0:00:04]}  Qf3 {[%clk 0:00:19]} 40. b4 {[%clk 0:00:03]}  Nc4 {[%clk 0:00:18]} 41. Bxc4 {[%clk 0:00:03]}  dxc4 {[%clk 0:00:18]} 42. d5 {[%clk 0:00:03]}  exd5 {[%clk 0:00:17]} 43. Nxd5 {[%clk 0:00:03]}  c3 {[%clk 0:00:12]} 44. Nxc3 {[%clk 0:00:03]}  Qg2+ {[%clk 0:00:07]} 45. Qxg2 {[%clk 0:00:03]}  hxg2 {[%clk 0:00:08]} 46. Kxg2 {[%clk 0:00:04]}  Kb6 {[%clk 0:00:08]} 47. Kf2 {[%clk 0:00:04]}  a5 {[%clk 0:00:07]} 48. bxa5+ {[%clk 0:00:04]}  Kxa5 {[%clk 0:00:08]} 49. Ke3 {[%clk 0:00:05]}  b5 {[%clk 0:00:08]} 50. Nd5 {[%clk 0:00:03]}  b4 {[%clk 0:00:07]} 51. Nxb4 {[%clk 0:00:02]}  Kxb4 {[%clk 0:00:08]} 52. Kf4 {[%clk 0:00:03]}  Kc5 {[%clk 0:00:08]} 53. Kg5 {[%clk 0:00:03]}  Kd5 {[%clk 0:00:08]} 54. Kf6 {[%clk 0:00:04]}  Be6 {[%clk 0:00:06]} 55. Kg6 {[%clk 0:00:04]}  Bg4 {[%clk 0:00:07]} 56. Kf6 {[%clk 0:00:04]}  Kc6 {[%clk 0:00:05]} 57. e6 {[%clk 0:00:04]}  Kd6 {[%clk 0:00:05]} 58. e7 {[%clk 0:00:05]}  Bd7 {[%clk 0:00:05]} 59. Kf7 {[%clk 0:00:03]}  Ke5 {[%clk 0:00:06]} 60. Kg6 {[%clk 0:00:02]}  Be8+ {[%clk 0:00:05]} 61. Kg5 {[%clk 0:00:02]}  Ke6 {[%clk 0:00:05]} 62. g4 {[%clk 0:00:03]}  hxg4 {[%clk 0:00:04]} 63. Kxg4 {[%clk 0:00:03]}  Kxe7 {[%clk 0:00:05]} 1/2-1/2


[Site "https://www.chess.com"]

[Event "Titled Tuesday Blitz December 27 Late 2022"]
[White "Kopacz, Grzegorz"]
[Black "Joubert, Dantelle"]
[WhiteFideId "1109880"]
[BlackFideId "14310813"]
[WhiteElo "1997"]
[BlackElo "1566"]
[Result "0-1"]
[Round "09"]
[TimeControl "180+2"]
[Date "2022.12.27"]
[WhiteClock "0:00:12"]
[BlackClock "0:00:33"]

1. d4 {[%clk 0:02:09]}  d5 {[%clk 0:02:52]} 2. c4 {[%clk 0:02:08]}  c6 {[%clk 0:02:52]} 3. Nc3 {[%clk 0:02:08]}  Nf6 {[%clk 0:02:52]} 4. Nf3 {[%clk 0:02:08]}  e6 {[%clk 0:02:52]} 5. cxd5 {[%clk 0:02:08]}  exd5 {[%clk 0:02:51]} 6. Bg5 {[%clk 0:02:09]}  Bf5 {[%clk 0:02:49]} 7. e3 {[%clk 0:02:07]}  Nbd7 {[%clk 0:02:45]} 8. Ne5 {[%clk 0:02:05]}  Bd6 {[%clk 0:02:42]} 9. f4 {[%clk 0:02:05]}  h6 {[%clk 0:02:39]} 10. Bh4 {[%clk 0:02:04]}  Qb6 {[%clk 0:02:35]} 11. Qc1 {[%clk 0:01:36]}  Ne4 {[%clk 0:02:01]} 12. Be2 {[%clk 0:01:32]}  Bxe5 {[%clk 0:01:38]} 13. fxe5 {[%clk 0:01:30]}  g5 {[%clk 0:01:32]} 14. Bf2 {[%clk 0:01:25]}  Nxf2 {[%clk 0:01:25]} 15. Kxf2 {[%clk 0:01:26]}  f6 {[%clk 0:01:22]} 16. Bh5+ {[%clk 0:01:22]}  Ke7 {[%clk 0:01:21]} 17. exf6+ {[%clk 0:01:12]}  Nxf6 {[%clk 0:01:18]} 18. Be2 {[%clk 0:01:08]}  Raf8 {[%clk 0:01:11]} 19. Rf1 {[%clk 0:01:06]}  Bg4 {[%clk 0:00:58]} 20. Kg1 {[%clk 0:01:03]}  Bxe2 {[%clk 0:00:51]} 21. Nxe2 {[%clk 0:01:04]}  Ng4 {[%clk 0:00:48]} 22. Qd2 {[%clk 0:00:55]}  Qc7 {[%clk 0:00:48]} 23. g3 {[%clk 0:00:46]}  Ke8 {[%clk 0:00:45]} 24. Qd3 {[%clk 0:00:43]}  Qe7 {[%clk 0:00:37]} 25. Qg6+ {[%clk 0:00:24]}  Kd8 {[%clk 0:00:35]} 26. Rxf8+ {[%clk 0:00:18]}  Rxf8 {[%clk 0:00:35]} 27. Nc3 {[%clk 0:00:11]}  Qxe3+ {[%clk 0:00:34]} 28. Kh1 {[%clk 0:00:12]}  Qf3+ {[%clk 0:00:32]} 29. Kg1 {[%clk 0:00:12]}  Qf2+ {[%clk 0:00:32]} 30. Kh1 {[%clk 0:00:12]}  Qxh2# {[%clk 0:00:33]} 0-1


[Site "https://www.chess.com"]

[Event "Titled Tuesday Blitz December 27 Late 2022"]
[White "Korchmar, Vasiliy"]
[Black "Janaszak, Dawid"]
[WhiteFideId "24131750"]
[BlackFideId "1119206"]
[WhiteElo "2438"]
[BlackElo "2316"]
[Result "0-1"]
[Round "09"]
[TimeControl "180+2"]
[Date "2022.12.27"]
[WhiteClock "0:00:02"]
[BlackClock "0:00:04"]

1. e4 {[%clk 0:02:57]}  e5 {[%clk 0:02:59]} 2. Nf3 {[%clk 0:02:56]}  Nc6 {[%clk 0:02:58]} 3. Bc4 {[%clk 0:02:57]}  Nf6 {[%clk 0:02:58]} 4. d3 {[%clk 0:02:57]}  Bc5 {[%clk 0:02:54]} 5. c3 {[%clk 0:02:57]}  d6 {[%clk 0:02:53]} 6. Bg5 {[%clk 0:02:57]}  h6 {[%clk 0:02:51]} 7. Bh4 {[%clk 0:02:57]}  a5 {[%clk 0:02:50]} 8. O-O {[%clk 0:02:56]}  g5 {[%clk 0:02:50]} 9. Bg3 {[%clk 0:02:56]}  h5 {[%clk 0:02:43]} 10. h4 {[%clk 0:02:55]}  Nh7 {[%clk 0:02:35]} 11. d4 {[%clk 0:02:44]}  Ba7 {[%clk 0:02:29]} 12. dxe5 {[%clk 0:02:33]}  g4 {[%clk 0:02:28]} 13. exd6 {[%clk 0:02:10]}  gxf3 {[%clk 0:02:26]} 14. Qxf3 {[%clk 0:02:11]}  Qf6 {[%clk 0:02:19]} 15. Qxh5 {[%clk 0:02:00]}  cxd6 {[%clk 0:02:08]} 16. Na3 {[%clk 0:02:00]}  Be6 {[%clk 0:01:56]} 17. Bxe6 {[%clk 0:01:49]}  Qxe6 {[%clk 0:01:57]} 18. Nb5 {[%clk 0:01:49]}  O-O-O {[%clk 0:01:49]} 19. Nxa7+ {[%clk 0:01:31]}  Nxa7 {[%clk 0:01:49]} 20. Qxa5 {[%clk 0:01:31]}  Nc6 {[%clk 0:01:40]} 21. Qd5 {[%clk 0:01:25]}  Qxd5 {[%clk 0:01:18]} 22. exd5 {[%clk 0:01:25]}  Ne7 {[%clk 0:01:19]} 23. c4 {[%clk 0:01:22]}  Nf5 {[%clk 0:01:19]} 24. Rac1 {[%clk 0:01:10]}  Nf6 {[%clk 0:01:12]} 25. c5 {[%clk 0:01:08]}  Ne4 {[%clk 0:00:46]} 26. cxd6+ {[%clk 0:01:06]}  Kb8 {[%clk 0:00:46]} 27. Be5 {[%clk 0:00:49]}  f6 {[%clk 0:00:44]} 28. Bf4 {[%clk 0:00:50]}  Nd4 {[%clk 0:00:28]} 29. Rfe1 {[%clk 0:00:45]}  Nxd6 {[%clk 0:00:22]} 30. Re4 {[%clk 0:00:28]}  Nf5 {[%clk 0:00:16]} 31. Re6 {[%clk 0:00:29]}  Rxh4 {[%clk 0:00:13]} 32. g3 {[%clk 0:00:29]}  Rxf4 {[%clk 0:00:06]} 33. gxf4 {[%clk 0:00:29]}  Rg8+ {[%clk 0:00:07]} 34. Kf1 {[%clk 0:00:29]}  Nb5 {[%clk 0:00:07]} 35. Rxf6 {[%clk 0:00:25]}  Nfd4 {[%clk 0:00:06]} 36. a4 {[%clk 0:00:19]}  Nc7 {[%clk 0:00:06]} 37. d6 {[%clk 0:00:20]}  Nd5 {[%clk 0:00:06]} 38. Rf7 {[%clk 0:00:17]}  Nf3 {[%clk 0:00:06]} 39. Ke2 {[%clk 0:00:16]}  Nd4+ {[%clk 0:00:06]} 40. Kd3 {[%clk 0:00:15]}  Nc6 {[%clk 0:00:06]} 41. Rh1 {[%clk 0:00:09]}  Rd8 {[%clk 0:00:05]} 42. Rh6 {[%clk 0:00:08]}  Ndb4+ {[%clk 0:00:03]} 43. Kc4 {[%clk 0:00:06]}  Na6 {[%clk 0:00:03]} 44. f5 {[%clk 0:00:04]}  Ne5+ {[%clk 0:00:03]} 45. Kd5 {[%clk 0:00:03]}  Nxf7 {[%clk 0:00:04]} 46. Rf6 {[%clk 0:00:04]}  Ng5 {[%clk 0:00:03]} 47. Rg6 {[%clk 0:00:04]}  Nf3 {[%clk 0:00:03]} 48. f6 {[%clk 0:00:04]}  Nc7+ {[%clk 0:00:03]} 49. Ke4 {[%clk 0:00:04]}  Rxd6 {[%clk 0:00:03]} 50. f7 {[%clk 0:00:02]}  Nd2+ {[%clk 0:00:04]} 0-1


[Site "https://www.chess.com"]

[Event "Titled Tuesday Blitz December 27 Late 2022"]
[White "Kozin, Yuri"]
[Black "Sadilek, Peter"]
[WhiteFideId "4129920"]
[BlackFideId "1616439"]
[WhiteElo "2251"]
[BlackElo "2314"]
[Result "1-0"]
[Round "09"]
[TimeControl "180+2"]
[Date "2022.12.27"]
[WhiteClock "0:01:20"]
[BlackClock "0:01:39"]

1. e4 {[%clk 0:03:00]}  e6 {[%clk 0:02:57]} 2. d4 {[%clk 0:03:00]}  d6 {[%clk 0:02:58]} 3. Bd3 {[%clk 0:02:57]}  Nf6 {[%clk 0:02:58]} 4. f4 {[%clk 0:02:57]}  d5 {[%clk 0:02:57]} 5. e5 {[%clk 0:02:55]}  Nfd7 {[%clk 0:02:57]} 6. f5 {[%clk 0:02:54]}  c5 {[%clk 0:02:58]} 7. c3 {[%clk 0:02:54]}  cxd4 {[%clk 0:02:58]} 8. cxd4 {[%clk 0:02:54]}  Nc6 {[%clk 0:02:59]} 9. Nf3 {[%clk 0:02:55]}  Qb6 {[%clk 0:02:56]} 10. Bc2 {[%clk 0:02:46]}  exf5 {[%clk 0:02:52]} 11. Nc3 {[%clk 0:02:23]}  Bb4 {[%clk 0:02:41]} 12. O-O {[%clk 0:02:18]}  Bxc3 {[%clk 0:02:40]} 13. bxc3 {[%clk 0:02:17]}  g6 {[%clk 0:02:36]} 14. Ba3 {[%clk 0:02:11]}  Qa5 {[%clk 0:02:34]} 15. Bd6 {[%clk 0:02:03]}  Nf8 {[%clk 0:02:35]} 16. Ba4 {[%clk 0:01:40]}  Bd7 {[%clk 0:02:32]} 17. Rb1 {[%clk 0:01:40]}  Nxe5 {[%clk 0:02:08]} 18. Nxe5 {[%clk 0:01:27]}  Bxa4 {[%clk 0:01:46]} 19. Qe1 {[%clk 0:01:26]}  Ne6 {[%clk 0:01:41]} 20. Rxb7 {[%clk 0:01:22]}  O-O-O {[%clk 0:01:39]} 21. Rb8# {[%clk 0:01:20]} 1-0


[Site "https://www.chess.com"]

[Event "Titled Tuesday Blitz December 27 Late 2022"]
[White "Liu, Casper"]
[Black "Ezat, Mohamed"]
[WhiteFideId "1454153"]
[BlackFideId "10600906"]
[WhiteElo "2278"]
[BlackElo "2402"]
[Result "1-0"]
[Round "09"]
[TimeControl "180+2"]
[Date "2022.12.27"]
[WhiteClock "0:00:23"]
[BlackClock "0:00:04"]

1. d4 {[%clk 0:02:52]}  Nf6 {[%clk 0:02:56]} 2. Bg5 {[%clk 0:02:53]}  Ne4 {[%clk 0:02:55]} 3. Bf4 {[%clk 0:02:52]}  d5 {[%clk 0:02:55]} 4. Nd2 {[%clk 0:02:52]}  Nxd2 {[%clk 0:02:52]} 5. Qxd2 {[%clk 0:02:51]}  a6 {[%clk 0:02:53]} 6. O-O-O {[%clk 0:02:51]}  Nc6 {[%clk 0:02:51]} 7. f3 {[%clk 0:02:51]}  Bf5 {[%clk 0:02:49]} 8. g4 {[%clk 0:02:48]}  Bg6 {[%clk 0:02:49]} 9. h4 {[%clk 0:02:49]}  h5 {[%clk 0:02:49]} 10. e3 {[%clk 0:02:41]}  e6 {[%clk 0:02:49]} 11. Bd3 {[%clk 0:02:29]}  Bxd3 {[%clk 0:02:47]} 12. Qxd3 {[%clk 0:02:29]}  hxg4 {[%clk 0:02:47]} 13. fxg4 {[%clk 0:02:29]}  Rxh4 {[%clk 0:02:45]} 14. Bxc7 {[%clk 0:02:25]}  Qf6 {[%clk 0:02:29]} 15. g5 {[%clk 0:02:25]}  Qf2 {[%clk 0:02:22]} 16. Rf1 {[%clk 0:02:14]}  Qxf1+ {[%clk 0:02:20]} 17. Qxf1 {[%clk 0:02:14]}  Rxh1 {[%clk 0:02:20]} 18. g6 {[%clk 0:02:05]}  f5 {[%clk 0:02:16]} 19. Qg2 {[%clk 0:02:05]}  Rh5 {[%clk 0:02:11]} 20. Nf3 {[%clk 0:02:05]}  Be7 {[%clk 0:02:09]} 21. Qg3 {[%clk 0:01:57]}  Kd7 {[%clk 0:02:05]} 22. Be5 {[%clk 0:01:45]}  Rah8 {[%clk 0:01:54]} 23. Bxg7 {[%clk 0:01:44]}  Rg8 {[%clk 0:01:22]} 24. Be5 {[%clk 0:01:39]}  Rh6 {[%clk 0:01:13]} 25. g7 {[%clk 0:01:37]}  Bf6 {[%clk 0:01:12]} 26. Bc7 {[%clk 0:01:33]}  Rxg7 {[%clk 0:00:25]} 27. Qd6+ {[%clk 0:01:32]}  Kc8 {[%clk 0:00:25]} 28. Bb6 {[%clk 0:01:28]}  Bd8 {[%clk 0:00:20]} 29. Bxd8 {[%clk 0:01:23]}  Nxd8 {[%clk 0:00:20]} 30. Ne5 {[%clk 0:01:11]}  Rc7 {[%clk 0:00:19]} 31. b3 {[%clk 0:01:07]}  Rh2 {[%clk 0:00:16]} 32. c4 {[%clk 0:01:06]}  dxc4 {[%clk 0:00:16]} 33. bxc4 {[%clk 0:01:07]}  Rg7 {[%clk 0:00:16]} 34. Ng6 {[%clk 0:00:51]}  Rh1+ {[%clk 0:00:15]} 35. Kd2 {[%clk 0:00:51]}  Rxg6 {[%clk 0:00:15]} 36. c5 {[%clk 0:00:49]}  Rg2+ {[%clk 0:00:13]} 37. Kd3 {[%clk 0:00:49]}  Rd1+ {[%clk 0:00:13]} 38. Kc3 {[%clk 0:00:50]}  Rc1+ {[%clk 0:00:13]} 39. Kd3 {[%clk 0:00:50]}  Nc6 {[%clk 0:00:11]} 40. Qxe6+ {[%clk 0:00:50]}  Kb8 {[%clk 0:00:12]} 41. Qxf5 {[%clk 0:00:48]}  Nb4+ {[%clk 0:00:09]} 42. Ke4 {[%clk 0:00:47]}  Re2 {[%clk 0:00:09]} 43. Qd7 {[%clk 0:00:27]}  Nc6 {[%clk 0:00:06]} 44. d5 {[%clk 0:00:27]}  Rc3 {[%clk 0:00:03]} 45. dxc6 {[%clk 0:00:21]}  Rcxe3+ {[%clk 0:00:03]} 46. Kf4 {[%clk 0:00:20]}  Re4+ {[%clk 0:00:03]} 47. Kf5 {[%clk 0:00:20]}  Re5+ {[%clk 0:00:03]} 48. Kf6 {[%clk 0:00:21]}  Re6+ {[%clk 0:00:02]} 49. Qxe6 {[%clk 0:00:21]}  Rxe6+ {[%clk 0:00:03]} 50. Kxe6 {[%clk 0:00:22]}  Kc7 {[%clk 0:00:02]} 51. cxb7 {[%clk 0:00:22]}  Kxb7 {[%clk 0:00:03]} 52. Kd7 {[%clk 0:00:22]}  Ka7 {[%clk 0:00:03]} 53. c6 {[%clk 0:00:23]}  Kb6 {[%clk 0:00:03]} 54. c7 {[%clk 0:00:23]}  Ka7 {[%clk 0:00:04]} 55. c8=Q {[%clk 0:00:24]}  a5 {[%clk 0:00:04]} 56. Kc6 {[%clk 0:00:23]} 1-0


[Site "https://www.chess.com"]

[Event "Titled Tuesday Blitz December 27 Late 2022"]
[White "Liu, Kelsey"]
[Black "Ptacnikova, Lenka"]
[WhiteFideId "30944481"]
[BlackFideId "305650"]
[WhiteElo "2065"]
[BlackElo "2099"]
[Result "0-1"]
[Round "09"]
[TimeControl "180+2"]
[Date "2022.12.27"]
[WhiteClock "0:01:01"]
[BlackClock "0:01:43"]

1. e4 {[%clk 0:03:00]}  c5 {[%clk 0:02:59]} 2. Nf3 {[%clk 0:03:00]}  e6 {[%clk 0:02:59]} 3. Nc3 {[%clk 0:03:00]}  Nc6 {[%clk 0:02:58]} 4. d4 {[%clk 0:03:00]}  cxd4 {[%clk 0:02:58]} 5. Nxd4 {[%clk 0:03:01]}  Nf6 {[%clk 0:02:58]} 6. Ndb5 {[%clk 0:03:00]}  Bb4 {[%clk 0:02:57]} 7. a3 {[%clk 0:02:59]}  Bxc3+ {[%clk 0:02:57]} 8. Nxc3 {[%clk 0:03:00]}  d5 {[%clk 0:02:53]} 9. exd5 {[%clk 0:02:29]}  exd5 {[%clk 0:02:53]} 10. Bb5 {[%clk 0:02:21]}  d4 {[%clk 0:02:47]} 11. Ne2 {[%clk 0:02:16]}  Qa5+ {[%clk 0:02:45]} 12. Bd2 {[%clk 0:02:06]}  Qxb5 {[%clk 0:02:45]} 13. O-O {[%clk 0:02:06]}  O-O {[%clk 0:02:43]} 14. Nf4 {[%clk 0:02:00]}  Bf5 {[%clk 0:02:36]} 15. Qf3 {[%clk 0:01:51]}  Bxc2 {[%clk 0:02:34]} 16. Rfc1 {[%clk 0:01:47]}  Qxb2 {[%clk 0:02:26]} 17. Nd5 {[%clk 0:01:16]}  Nxd5 {[%clk 0:02:20]} 18. Qxd5 {[%clk 0:01:17]}  d3 {[%clk 0:01:49]} 19. Qc5 {[%clk 0:01:01]}  Qe5 {[%clk 0:01:43]} 0-1


[Site "https://www.chess.com"]

[Event "Titled Tuesday Blitz December 27 Late 2022"]
[White "Lutz, Igor Oscar"]
[Black "Hernandez Jimenez, Alexander Andres"]
[WhiteFideId "2110806"]
[BlackFideId "3900452"]
[WhiteElo "1969"]
[BlackElo "2134"]
[Result "1-0"]
[Round "09"]
[TimeControl "180+2"]
[Date "2022.12.27"]
[WhiteClock "0:00:17"]
[BlackClock "0:00:04"]

1. d4 {[%clk 0:03:00]}  Nf6 {[%clk 0:02:56]} 2. c4 {[%clk 0:03:00]}  e6 {[%clk 0:02:56]} 3. g3 {[%clk 0:03:01]}  Bb4+ {[%clk 0:02:56]} 4. Bd2 {[%clk 0:03:01]}  a5 {[%clk 0:02:54]} 5. Bg2 {[%clk 0:02:59]}  c5 {[%clk 0:02:45]} 6. Nf3 {[%clk 0:02:54]}  O-O {[%clk 0:02:35]} 7. O-O {[%clk 0:02:41]}  d6 {[%clk 0:02:32]} 8. Bg5 {[%clk 0:02:38]}  cxd4 {[%clk 0:02:32]} 9. Nxd4 {[%clk 0:02:29]}  Nbd7 {[%clk 0:02:23]} 10. Nb5 {[%clk 0:02:01]}  Ne5 {[%clk 0:02:15]} 11. a3 {[%clk 0:01:47]}  Bc5 {[%clk 0:02:13]} 12. Qc2 {[%clk 0:01:40]}  h6 {[%clk 0:01:49]} 13. Bf4 {[%clk 0:01:39]}  Ng6 {[%clk 0:01:42]} 14. Bd2 {[%clk 0:01:35]}  Qe7 {[%clk 0:01:25]} 15. N1c3 {[%clk 0:01:32]}  Rb8 {[%clk 0:01:17]} 16. Rad1 {[%clk 0:01:27]}  d5 {[%clk 0:01:13]} 17. cxd5 {[%clk 0:01:23]}  exd5 {[%clk 0:01:13]} 18. Nxd5 {[%clk 0:01:03]}  Nxd5 {[%clk 0:01:08]} 19. Bxd5 {[%clk 0:01:04]}  Bg4 {[%clk 0:01:02]} 20. Qxg6 {[%clk 0:00:56]}  Qxe2 {[%clk 0:00:42]} 21. Bxh6 {[%clk 0:00:28]}  Bxf2+ {[%clk 0:00:34]} 22. Rxf2 {[%clk 0:00:27]}  Qxd1+ {[%clk 0:00:34]} 23. Rf1 {[%clk 0:00:20]}  Qxf1+ {[%clk 0:00:08]} 24. Kxf1 {[%clk 0:00:20]}  Bh3+ {[%clk 0:00:04]} 25. Kg1 {[%clk 0:00:17]} 1-0


[Site "https://www.chess.com"]